[Event "HUN-chT Youth-Children 2018"]
[Site "Zalakaros"]
[Date "2018.07.28"]
[Round "6"]
[White "Acs, Marton"]
[Black "Baski, Barnabas"]
[Result "1-0"]
[ECO "E18"]
[WhiteElo "2204"]
[BlackElo "1740"]
[Annotator "NA"]
[PlyCount "83"]
[EventDate "2018.07.26"]
[EventType "team-tourn"]
[EventCountry "HUN"]
[SourceTitle "playchess.com"]
[Source "ChessBase"]
[SourceQuality "1"]
[TimeControl "5400+30"]

1. Nf3 Nf6 2. g3 b6 3. Bg2 Bb7 4. O-O e6 {[%emt 0:02:02]} 5. d4 {[%emt 0:00:09]} Be7 {[%emt 0:00:34]} 6. c4 {[%emt 0:00:05]} O-O {[%emt 0:00:30]} 7. Nc3 {[%emt 0:00:30]} Ne4 {[%emt 0:00:30]} 8. Bd2 {[%emt 0:00:30]} d6 {[%emt 0:00:30]} 9. Qc2 {[%emt 0:00:30]} Nxd2 {[%emt 0:00:30]} 10. Qxd2 {[%emt 0:00:30]} Nd7 {[%emt 0:00:30]} 11. e4 {[%emt 0:00:30]} e5 {[%emt 0:00:30]} 12. Rad1 {[%emt 0:00:30]} Bf6 {[%emt 0:00:30]} 13. b3 {[%emt 0:00:30]} g6 {[%emt 0:00:30]} 14. dxe5 {[%emt 0:00:30]} Nxe5 {[%emt 0:00:30]} 15. Nd4 {[%emt 0:00:30]} Bg7 {[%emt 0:00:30]} 16. Nd5 {[%emt 0:00:30]} a6 {[%emt 0:00:30]} 17. f4 {[%emt 0:00:30]} c6 {[%emt 0:00:30]} 18. Ne3 {[%emt 0:00:30]} c5 {[%emt 0:00:30]} 19. Ndc2 {[%emt 0:00:30]} Nc6 {[%emt 0:00:30]} 20. Qxd6 {[%emt 0:00:30]} Nd4 {[%emt 0:00:30]} 21. Qxd8 {[%emt 0:00:30]} Raxd8 {[%emt 0:00:30]} 22. Kf2 {[%emt 0:00:30]} Rfe8 {[%emt 0:00:30]} 23. e5 {[%emt 0:00:30]} Bxg2 {[%emt 0:00:30]} 24. Kxg2 {[%emt 0:00:30]} f6 {[%emt 0:00:30]} 25. exf6 {[%emt 0:00:30]} Nxc2 {[%emt 0:00:30]} 26. Nxc2 {[%emt 0:00:30]} Rxd1 {[%emt 0:00:30]} 27. Rxd1 {[%emt 0:00:30]} Re2+ {[%emt 0:00:30]} 28. Kf3 {[%emt 0:00:30]} Rxc2 {[%emt 0:00:30]} 29. fxg7 {[%emt 0:00:30]} Kxg7 {[%emt 0:00:30]} 30. Rd7+ {[%emt 0:00:30]} Kg8 {[%emt 0:00:30]} 31. Rb7 {[%emt 0:00:30]} Rxh2 {[%emt 1:22:41]} 32. a4 {[%emt 1:17:53]} Rc2 {[%emt 0:01:56]} 33. Rxb6 {[%emt 0:00:32]} Rc3+ {[%emt 0:01:21]} 34. Kg4 {[%emt 0:01:31]} Kf7 {[%emt 0:00:59]} 35. Kh4 {[%emt 0:03:11]} Rf3 {[%emt 0:01:21]} 36. a5 {[%emt 0:00:22]} h6 {[%emt 0:01:54]} 37. Rxa6 {[%emt 0:00:23]} Rxb3 {[%emt 0:00:35]} 38. Rc6 {[%emt 0:00:06]} g5+ {[%emt 0:00:34]} 39. Kg4 {[%emt 0:00:23]} h5+ {[%emt 0:02:02]} 40. Kxg5 {[%emt 0:00:44]} Rxg3+ {[%emt 0:00:07]} 41. Kxh5 {[%emt 0:00:22]} Rf3 {[%emt 0:00:10]} 42. Kg5 {[%emt 0:00:12]} 1-0

[Event "HUN-chT Youth-Children 2018"]
[Site "Zalakaros"]
[Date "2018.07.28"]
[Round "6"]
[White "Egyed, Judit"]
[Black "Fule, Simon"]
[Result "1/2-1/2"]
[ECO "C77"]
[WhiteElo "2171"]
[BlackElo "2061"]
[Annotator "NA"]
[PlyCount "62"]
[EventDate "2018.07.26"]
[EventType "team-tourn"]
[EventCountry "HUN"]
[SourceTitle "playchess.com"]
[Source "ChessBase"]
[SourceQuality "1"]
[TimeControl "5400+30"]

1. e4 {[%emt 0:00:00]} e5 {[%emt 0:00:05]} 2. Nf3 {[%emt 0:00:00]} Nc6 {[%emt 0:00:06]} 3. Bb5 {[%emt 0:00:00]} a6 {[%emt 0:00:06]} 4. Ba4 {[%emt 0:00:00]} Nf6 {[%emt 0:00:07]} 5. d3 {[%emt 0:00:08]} d6 {[%emt 0:00:28]} 6. c3 {[%emt 0:00:32]} g6 {[%emt 0:00:04]} 7. O-O {[%emt 0:01:01]} Bg7 {[%emt 0:00:06]} 8. h3 {[%emt 0:00:48]} O-O {[%emt 0:00:22]} 9. Be3 {[%emt 0:00:32]} b5 {[%emt 0:03:00]} 10. Bc2 {[%emt 0:03:49]} Re8 {[%emt 0:02:48]} 11. Nbd2 {[%emt 0:01:50]} Bb7 {[%emt 0:01:27]} 12. Re1 {[%emt 0:01:42]} h6 {[%emt 0:02:22]} 13. Nf1 {[%emt 0:01:26]} d5 {[%emt 0:03:02]} 14. Ng3 {[%emt 0:01:49]} dxe4 {[%emt 0:06:34]} 15. dxe4 {[%emt 0:00:08]} Qxd1 {[%emt 0:00:06]} 16. Raxd1 {[%emt 0:00:41]} Rad8 {[%emt 0:00:12]} 17. Rd2 {[%emt 0:02:43]} Nh7 {[%emt 0:04:08]} 18. Red1 {[%emt 0:02:44]} Nf8 {[%emt 0:02:04]} 19. Rxd8 {[%emt 0:07:15]} Rxd8 {[%emt 0:00:19]} 20. Rxd8 {[%emt 0:00:05]} Nxd8 {[%emt 0:00:06]} 21. Ne1 {[%emt 0:00:05]} Nd7 {[%emt 0:04:39]} 22. Nd3 {[%emt 0:01:36]} Kf8 {[%emt 0:01:01]} 23. b4 {[%emt 0:12:55]} Ne6 {[%emt 0:02:08]} 24. f3 {[%emt 0:02:14]} Nf4 {[%emt 0:08:27]} 25. Kf2 {[%emt 0:10:09]} Nxd3+ {[%emt 0:02:05]} 26. Bxd3 {[%emt 0:00:07]} Nb6 {[%emt 0:01:13]} 27. Ne2 {[%emt 0:01:40]} Bc8 {[%emt 0:05:03]} 28. Nc1 {[%emt 0:07:38]} Be6 {[%emt 0:00:31]} 29. Nb3 {[%emt 0:00:46]} Na4 {[%emt 0:00:23]} 30. Bd2 {[%emt 0:01:24]} Ke8 {[%emt 0:02:14]} 31. Bc2 {[%emt 0:02:48]} Bf8 {[%emt 0:00:39]} 1/2-1/2

[Event "HUN-chT Youth-Children 2018"]
[Site "Zalakaros"]
[Date "2018.07.28"]
[Round "6"]
[White "Losonczi, Marcell"]
[Black "Horvath, Csongor Endre"]
[Result "1-0"]
[ECO "B76"]
[WhiteElo "2149"]
[BlackElo "1845"]
[Annotator "NA"]
[PlyCount "55"]
[EventDate "2018.07.26"]
[EventType "team-tourn"]
[EventCountry "HUN"]
[SourceTitle "playchess.com"]
[Source "ChessBase"]
[SourceQuality "1"]
[TimeControl "5400+30"]

1. e4 {[%emt 0:00:00]} c5 {[%emt 0:00:25]} 2. Nf3 {[%emt 0:00:00]} d6 {[%emt 0:00:15]} 3. d4 {[%emt 0:00:00]} cxd4 {[%emt 0:00:04]} 4. Nxd4 {[%emt 0:00:00]} Nf6 {[%emt 0:01:18]} 5. Nc3 {[%emt 0:00:00]} g6 {[%emt 0:01:31]} 6. Be3 {[%emt 0:00:00]} Bg7 {[%emt 0:01:51]} 7. f3 {[%emt 0:00:03]} O-O {[%emt 0:00:09]} 8. Qd2 {[%emt 0:00:05]} Nc6 {[%emt 0:00:40]} 9. g4 {[%emt 0:00:05]} Be6 {[%emt 0:02:18]} 10. Nxe6 {[%emt 0:00:55]} fxe6 {[%emt 0:00:07]} 11. O-O-O {[%emt 0:00:19]} Ne5 {[%emt 0:00:32]} 12. Be2 {[%emt 0:00:09]} Qc8 {[%emt 0:01:15]} 13. h4 {[%emt 0:02:07]} Nfd7 {[%emt 0:02:46]} 14. f4 {[%emt 0:27:59]} Nc4 {[%emt 0:08:38]} 15. Bxc4 {[%emt 0:00:10]} Qxc4 {[%emt 0:00:02]} 16. e5 {[%emt 0:00:22]} Rac8 {[%emt 0:52:03]} 17. h5 {[%emt 0:07:09]} b5 {[%emt 0:07:55]} 18. Kb1 {[%emt 0:01:55]} b4 {[%emt 0:00:29]} 19. Ne2 {[%emt 0:00:48]} dxe5 {[%emt 0:01:02]} 20. hxg6 {[%emt 0:07:58]} Nf6 {[%emt 0:05:49]} 21. gxh7+ {[%emt 0:06:29]} Nxh7 {[%emt 0:00:17]} 22. fxe5 {[%emt 0:08:51]} Bxe5 {[%emt 0:00:51]} 23. Bd4 {[%emt 0:04:51]} Bxd4 {[%emt 0:03:12]} 24. Nxd4 {[%emt 0:00:34]} Rf7 {[%emt 0:00:06]} 25. Qh6 {[%emt 0:05:51]} e5 {[%emt 0:02:04]} 26. Nf5 {[%emt 0:00:18]} Qxc2+ {[%emt 0:00:44]} 27. Ka1 {[%emt 0:00:02]} Rc6 {[%emt 0:00:07]} 28. Rd8+ {[%emt 0:00:09] Rc8 Rdd1} 1-0

[Event "HUN-chT Youth-Children 2018"]
[Site "Zalakaros"]
[Date "2018.07.28"]
[Round "6"]
[White "Dibusz, Domonkos"]
[Black "Koszta, Benedek"]
[Result "1/2-1/2"]
[ECO "B90"]
[WhiteElo "2076"]
[BlackElo "1901"]
[Annotator "NA"]
[PlyCount "100"]
[EventDate "2018.07.26"]
[EventType "team-tourn"]
[EventCountry "HUN"]
[SourceTitle "playchess.com"]
[Source "ChessBase"]
[SourceQuality "1"]
[TimeControl "5400+30"]

1. e4 {[%emt 0:00:00]} c5 {[%emt 0:00:11]} 2. Nf3 {[%emt 0:00:00]} d6 {[%emt 0:00:21]} 3. d4 {[%emt 0:00:00]} cxd4 {[%emt 0:00:07]} 4. Nxd4 {[%emt 0:00:00]} Nf6 {[%emt 0:00:08]} 5. Nc3 {[%emt 0:00:04]} a6 {[%emt 0:00:22]} 6. Be3 {[%emt 0:00:59]} e5 {[%emt 0:00:29]} 7. Nb3 {[%emt 0:00:05]} Be6 {[%emt 0:00:09]} 8. h3 {[%emt 0:00:47]} Be7 {[%emt 0:00:24]} 9. f4 {[%emt 0:00:18]} exf4 {[%emt 0:01:02]} 10. Bxf4 {[%emt 0:00:07]} Nc6 {[%emt 0:00:36]} 11. Qe2 {[%emt 0:00:14]} Nd7 {[%emt 0:01:22]} 12. O-O-O {[%emt 0:01:22]} Nde5 {[%emt 0:00:54]} 13. Nd5 {[%emt 0:01:43]} O-O {[%emt 0:03:33]} 14. Qd2 {[%emt 0:02:11]} Re8 {[%emt 0:02:51]} 15. Be2 {[%emt 0:06:31]} Bf8 {[%emt 0:02:59]} 16. Rhf1 {[%emt 0:01:02]} Rb8 {[%emt 0:08:54]} 17. g4 {[%emt 0:05:12]} b5 {[%emt 0:06:13]} 18. Bxe5 {[%emt 0:02:48]} Nxe5 {[%emt 0:06:18]} 19. Nd4 {[%emt 0:00:24]} Bxd5 {[%emt 0:03:11]} 20. exd5 {[%emt 0:00:01]} g6 {[%emt 0:05:35]} 21. Qf4 {[%emt 0:02:52]} Qc7 {[%emt 0:02:18]} 22. Kb1 {[%emt 0:00:48]} Bg7 {[%emt 0:01:11]} 23. h4 {[%emt 0:04:27]} Re7 {[%emt 0:14:16]} 24. Rf2 {[%emt 0:01:32]} Rbe8 {[%emt 0:04:17]} 25. c3 {[%emt 0:07:10]} Qb7 {[%emt 0:10:01]} 26. h5 {[%emt 0:04:34]} Qd7 {[%emt 0:08:13]} 27. Rg2 {[%emt 0:06:56]} Nc4 {[%emt 0:02:58]} 28. Bxc4 {[%emt 0:01:22]} bxc4 {[%emt 0:00:05]} 29. h6 {[%emt 0:01:48]} Re4 {[%emt 0:02:01]} 30. Qg5 {[%emt 0:01:46]} Bh8 {[%emt 0:01:53]} 31. Nc6 {[%emt 0:04:36]} Re1 {[%emt 0:04:04]} 32. Rxe1 {[%emt 0:02:34]} Rxe1+ {[%emt 0:00:07]} 33. Kc2 {[%emt 0:00:07]} Qe8 {[%emt 0:00:10]} 34. Qd8 {[%emt 0:01:31]} Qxd8 {[%emt 0:00:15]} 35. Nxd8 {[%emt 0:00:01]} Re5 {[%emt 0:00:37]} 36. Nc6 {[%emt 0:00:59]} Rg5 {[%emt 0:00:51]} 37. b3 {[%emt 0:04:02]} cxb3+ {[%emt 0:01:22]} 38. Kxb3 {[%emt 0:00:33]} Kf8 {[%emt 0:01:18]} 39. c4 {[%emt 0:03:30]} f5 {[%emt 0:01:15]} 40. Nd8 {[%emt 0:03:12]} Rxg4 {[%emt 0:00:42]} 41. Ne6+ {[%emt 0:00:55]} Ke7 {[%emt 0:01:12]} 42. Re2 {[%emt 0:01:36]} Be5 {[%emt 0:01:18]} 43. c5 {[%emt 0:00:27]} Rg3+ {[%emt 0:01:07]} 44. Ka4 {[%emt 0:02:38]} Rc3 {[%emt 0:00:38]} 45. c6 {[%emt 0:00:29]} f4 {[%emt 0:01:20]} 46. Kb4 {[%emt 0:01:25]} f3 {[%emt 0:01:30]} 47. Rf2 {[%emt 0:01:03]} Rd3 {[%emt 0:01:21]} 48. Kc4 {[%emt 0:00:58]} Rc3+ {[%emt 0:00:36]} 49. Kb4 {[%emt 0:00:04]} Kf6 {[%emt 0:01:32]} 50. c7 {[%emt 0:00:17]} Ke7 1/2-1/2

[Event "HUN-chT Youth-Children 2018"]
[Site "Zalakaros"]
[Date "2018.07.28"]
[Round "6"]
[White "Kovacsy, Barnabas"]
[Black "Kovacs, Gabor Etele"]
[Result "0-1"]
[ECO "B03"]
[WhiteElo "2075"]
[BlackElo "1999"]
[Annotator "NA"]
[PlyCount "64"]
[EventDate "2018.07.26"]
[EventType "team-tourn"]
[EventCountry "HUN"]
[SourceTitle "playchess.com"]
[Source "ChessBase"]
[SourceQuality "1"]
[TimeControl "5400+30"]

1. e4 {[%emt 0:00:00]} Nf6 {[%emt 0:00:09]} 2. e5 {[%emt 0:00:00]} Nd5 {[%emt 0:00:06]} 3. d4 {[%emt 0:00:00]} d6 {[%emt 0:00:03]} 4. c4 {[%emt 0:00:00]} Nb6 {[%emt 0:00:05]} 5. exd6 {[%emt 0:00:02]} cxd6 {[%emt 0:00:09]} 6. Nc3 {[%emt 0:03:40]} g6 {[%emt 0:00:13]} 7. Be3 {[%emt 0:00:46]} Bg7 {[%emt 0:00:04]} 8. Rc1 {[%emt 0:00:19]} O-O {[%emt 0:00:18]} 9. b3 {[%emt 0:00:30]} Bf5 {[%emt 0:00:16]} 10. Bd3 {[%emt 0:03:29]} Bxd3 {[%emt 0:02:58]} 11. Qxd3 {[%emt 0:00:06]} d5 {[%emt 0:14:00]} 12. Nf3 {[%emt 0:06:36]} Nc6 {[%emt 0:13:37]} 13. c5 {[%emt 0:04:19]} Nc8 {[%emt 0:00:08]} 14. O-O {[%emt 0:01:40]} e6 {[%emt 0:00:30]} 15. a3 {[%emt 0:10:12]} N8e7 {[%emt 0:06:56]} 16. Ne2 {[%emt 0:08:53]} Nf5 {[%emt 0:02:18]} 17. Ng3 {[%emt 0:03:06]} Nh4 {[%emt 0:07:04]} 18. Nxh4 {[%emt 0:08:51]} Qxh4 {[%emt 0:00:03]} 19. Ne2 {[%emt 0:12:55]} Rfd8 {[%emt 0:10:11]} 20. Qd2 {[%emt 0:01:48]} h6 {[%emt 0:07:07]} 21. f4 {[%emt 0:11:17]} a5 {[%emt 0:17:13]} 22. b4 {[%emt 0:01:59]} axb4 {[%emt 0:00:44]} 23. axb4 {[%emt 0:00:02]} Ra3 {[%emt 0:01:56]} 24. Rc3 {[%emt 0:03:15]} Rda8 {[%emt 0:02:17]} 25. b5 {[%emt 0:00:25]} Ra2 {[%emt 0:02:55]} 26. bxc6 {[%emt 0:03:57]} Rxd2 {[%emt 0:01:30]} 27. cxb7 {[%emt 0:00:05]} Rda2 {[%emt 0:01:40]} 28. c6 {[%emt 0:02:19]} Kh7 {[%emt 0:03:16]} 29. c7 {[%emt 0:02:25]} Rxe2 {[%emt 0:00:18]} 30. bxa8=Q {[%emt 0:00:46]} Qg4 {[%emt 0:00:06]} 31. Bf2 {[%emt 0:00:34]} Rxf2 {[%emt 0:00:38]} 32. Rxf2 {[%emt 0:00:30]} Qd1+ {[%emt 0:00:07]} 0-1

[Event "HUN-chT Youth-Children 2018"]
[Site "Zalakaros"]
[Date "2018.07.28"]
[Round "6"]
[White "Diller, Denis"]
[Black "Juhasz, Agoston"]
[Result "1-0"]
[ECO "D15"]
[WhiteElo "2057"]
[BlackElo "2244"]
[Annotator "NA"]
[PlyCount "63"]
[EventDate "2018.07.26"]
[EventType "team-tourn"]
[EventCountry "HUN"]
[SourceTitle "playchess.com"]
[Source "ChessBase"]
[SourceQuality "1"]
[TimeControl "5400+30"]

1. d4 {[%emt 0:00:00]} d5 {[%emt 0:00:07]} 2. c4 {[%emt 0:00:00]} c6 {[%emt 0:00:08]} 3. Nc3 {[%emt 0:00:44]} Nf6 {[%emt 0:00:22]} 4. Nf3 {[%emt 0:02:24]} dxc4 {[%emt 0:00:39]} 5. e3 {[%emt 0:00:46]} b5 {[%emt 0:00:49]} 6. a4 {[%emt 0:01:11]} b4 {[%emt 0:01:14]} 7. Na2 {[%emt 0:01:21]} e6 {[%emt 0:04:35]} 8. Bxc4 {[%emt 0:00:47]} Bb7 {[%emt 0:03:31]} 9. O-O {[%emt 0:01:36]} Bd6 {[%emt 0:04:38]} 10. b3 {[%emt 0:07:31]} Nbd7 {[%emt 0:02:52]} 11. Bb2 {[%emt 0:00:55]} O-O {[%emt 0:01:18]} 12. Nc1 {[%emt 0:03:14]} Qa5 {[%emt 0:04:53]} 13. Nd3 {[%emt 0:01:30]} Rfd8 {[%emt 0:03:00]} 14. Qe2 {[%emt 0:01:01]} Ne4 {[%emt 0:07:23]} 15. Rfd1 {[%emt 0:10:21]} Qh5 {[%emt 0:06:57]} 16. h3 {[%emt 0:09:50]} c5 {[%emt 0:12:05]} 17. dxc5 {[%emt 0:06:56]} Ndxc5 {[%emt 0:12:58]} 18. Nxc5 {[%emt 0:00:32]} Bxc5 {[%emt 0:02:29]} 19. Rxd8+ {[%emt 0:16:48]} Rxd8 {[%emt 0:00:03]} 20. Rd1 {[%emt 0:00:30]} Bd6 {[%emt 0:06:15]} 21. Bd3 {[%emt 0:13:18]} Bd5 {[%emt 0:13:41]} 22. Bxe4 {[%emt 0:01:52]} Bxe4 {[%emt 0:00:05]} 23. Rd4 {[%emt 0:00:05]} Bd5 {[%emt 0:01:16]} 24. e4 {[%emt 0:01:05]} Bc5 {[%emt 0:05:13]} 25. Rd2 {[%emt 0:01:14]} h6 {[%emt 0:05:43]} 26. exd5 {[%emt 0:00:16]} Rxd5 {[%emt 0:00:21]} 27. Rxd5 {[%emt 0:00:22]} Qxd5 {[%emt 0:00:16]} 28. Nd2 {[%emt 0:01:17]} Qf5 {[%emt 0:00:30]} 29. Ne4 {[%emt 0:01:45]} Bf8 {[%emt 0:01:04]} 30. Qg4 {[%emt 0:00:50]} Qa5 {[%emt 0:00:32]} 31. Nf6+ {[%emt 0:00:52]} Kh8 {[%emt 0:00:02]} 32. Nd7 {[%emt 0:00:09]} 1-0

[Event "HUN-chT Youth-Children 2018"]
[Site "Zalakaros"]
[Date "2018.07.28"]
[Round "6"]
[White "Kelemen, David"]
[Black "Pasztor, Balazs"]
[Result "1/2-1/2"]
[ECO "C84"]
[WhiteElo "2055"]
[BlackElo "2072"]
[Annotator "NA"]
[PlyCount "57"]
[EventDate "2018.07.26"]
[EventType "team-tourn"]
[EventCountry "HUN"]
[SourceTitle "playchess.com"]
[Source "ChessBase"]
[SourceQuality "1"]
[TimeControl "5400+30"]

1. e4 {[%emt 0:00:00]} e5 {[%emt 0:00:11]} 2. Nf3 {[%emt 0:00:00]} Nc6 {[%emt 0:00:09]} 3. Bb5 {[%emt 0:00:00]} a6 {[%emt 0:00:15]} 4. Ba4 {[%emt 0:00:00]} Nf6 {[%emt 0:00:09]} 5. O-O {[%emt 0:00:14]} Be7 {[%emt 0:00:12]} 6. d3 {[%emt 0:00:33]} b5 {[%emt 0:01:22]} 7. Bb3 {[%emt 0:00:07]} d6 {[%emt 0:00:42]} 8. a3 {[%emt 0:04:22]} O-O 9. Re1 {[%emt 0:01:03]} Rb8 {[%emt 0:08:39]} 10. Nbd2 {[%emt 0:01:27]} Na5 {[%emt 0:01:38]} 11. Ba2 {[%emt 0:01:13]} c5 {[%emt 0:06:50]} 12. c3 Nc6 13. Nf1 {[%emt 0:07:07]} a5 {[%emt 0:08:24]} 14. h3 {[%emt 0:05:53]} Qc7 {[%emt 0:06:49]} 15. d4 {[%emt 0:09:29]} c4 {[%emt 0:21:55]} 16. a4 {[%emt 0:03:00]} b4 {[%emt 0:14:45]} 17. Bxc4 {[%emt 0:01:50]} bxc3 {[%emt 0:01:38]} 18. bxc3 {[%emt 0:00:12]} exd4 {[%emt 0:01:08]} 19. cxd4 {[%emt 0:00:24]} Nb4 {[%emt 0:00:57]} 20. Bb3 {[%emt 0:06:57]} d5 {[%emt 0:03:57]} 21. exd5 {[%emt 0:01:42]} Nfxd5 {[%emt 0:01:30]} 22. Bxd5 {[%emt 0:01:09]} Nxd5 {[%emt 0:00:28]} 23. Ne3 {[%emt 0:02:43]} Nxe3 {[%emt 0:03:12]} 24. Bxe3 {[%emt 0:00:33]} Bb4 {[%emt 0:01:48]} 25. Rc1 {[%emt 0:05:39]} Qd6 {[%emt 0:02:19]} 26. Bd2 {[%emt 0:00:50]} Be6 {[%emt 0:04:50]} 27. Bxb4 {[%emt 0:07:36]} Rxb4 {[%emt 0:01:05]} 28. Re5 {[%emt 0:02:31]} Bd5 {[%emt 0:02:34]} 29. Re3 {[%emt 0:09:47]} 1/2-1/2

[Event "HUN-chT Youth-Children 2018"]
[Site "Zalakaros"]
[Date "2018.07.28"]
[Round "6"]
[White "Horvath, Balazs"]
[Black "Borhy, Marcell"]
[Result "0-1"]
[ECO "A06"]
[WhiteElo "2039"]
[BlackElo "2234"]
[Annotator "NA"]
[PlyCount "88"]
[EventDate "2018.07.26"]
[EventType "team-tourn"]
[EventCountry "HUN"]
[SourceTitle "playchess.com"]
[Source "ChessBase"]
[SourceQuality "1"]
[TimeControl "5400+30"]

1. Nf3 {[%emt 0:00:00]} d5 {[%emt 0:00:11]} 2. g3 {[%emt 0:00:00]} Nf6 {[%emt 0:00:12]} 3. d4 {[%emt 0:00:29]} c6 {[%emt 0:00:42]} 4. Bg2 {[%emt 0:00:13]} Bg4 {[%emt 0:01:09]} 5. O-O {[%emt 0:03:39]} e6 {[%emt 0:00:20]} 6. c3 {[%emt 0:05:01]} Nbd7 {[%emt 0:01:24]} 7. Bg5 {[%emt 0:09:44]} Bd6 {[%emt 0:02:55]} 8. Nbd2 {[%emt 0:01:30]} Qc7 {[%emt 0:00:45]} 9. c4 {[%emt 0:06:56]} h6 {[%emt 0:07:08]} 10. Bxf6 {[%emt 0:04:32]} Nxf6 {[%emt 0:00:20]} 11. c5 {[%emt 0:01:23]} Be7 {[%emt 0:00:10]} 12. Ne5 {[%emt 0:00:30]} Bf5 {[%emt 0:01:26]} 13. Rc1 {[%emt 0:01:13]} Nd7 {[%emt 0:01:50]} 14. Nxd7 {[%emt 0:03:36]} Qxd7 {[%emt 0:00:45]} 15. Re1 {[%emt 0:10:48]} O-O {[%emt 0:05:54]} 16. Kh1 {[%emt 0:10:42]} Bf6 {[%emt 0:02:20]} 17. e3 {[%emt 0:00:56]} e5 {[%emt 0:03:17]} 18. Nf3 {[%emt 0:07:37]} Rfe8 {[%emt 0:06:20]} 19. Qd2 {[%emt 0:06:16]} exd4 {[%emt 0:02:33]} 20. Nxd4 {[%emt 0:06:39]} Be4 {[%emt 0:01:37]} 21. Kg1 {[%emt 0:01:02]} Re5 {[%emt 0:04:01]} 22. Rcd1 {[%emt 0:07:07]} Rae8 {[%emt 0:05:27]} 23. Nb3 {[%emt 0:05:53]} Bxg2 {[%emt 0:02:46]} 24. Kxg2 {[%emt 0:00:06]} h5 {[%emt 0:03:11]} 25. h3 {[%emt 0:03:22]} h4 {[%emt 0:02:11]} 26. g4 {[%emt 0:00:11]} Re4 {[%emt 0:00:47]} 27. f3 {[%emt 0:00:37]} R4e6 {[%emt 0:01:15]} 28. Nd4 {[%emt 0:01:23]} Bxd4 {[%emt 0:02:15]} 29. exd4 {[%emt 0:00:22]} Qc7 {[%emt 0:00:48]} 30. Qf2 {[%emt 0:00:06]} Qf4 {[%emt 0:02:08]} 31. Rxe6 {[%emt 0:02:41]} Rxe6 {[%emt 0:00:03]} 32. Rf1 {[%emt 0:00:51]} g5 {[%emt 0:00:21]} 33. Re1 {[%emt 0:00:28]} Rxe1 {[%emt 0:07:18]} 34. Qxe1 {[%emt 0:00:05]} Qxd4 {[%emt 0:00:14]} 35. Qe7 {[%emt 0:00:57]} Qxb2+ {[%emt 0:00:17]} 36. Kf1 {[%emt 0:00:14]} Qb1+ {[%emt 0:02:22]} 37. Kg2 {[%emt 0:00:07]} Qxa2+ {[%emt 0:00:31]} 38. Kf1 {[%emt 0:00:18]} Qb1+ {[%emt 0:00:09]} 39. Kg2 {[%emt 0:00:06]} Qc2+ {[%emt 0:00:15]} 40. Kf1 {[%emt 0:00:09]} Qd1+ {[%emt 0:00:19]} 41. Kg2 {[%emt 0:00:27]} Qd2+ {[%emt 0:00:06]} 42. Kf1 {[%emt 0:00:07]} Qf4 {[%emt 0:00:13]} 43. Kf2 {[%emt 0:01:17]} d4 {[%emt 0:01:38]} 44. Qxb7 {[%emt 0:01:06]} Qe3+ {[%emt 0:00:13]} 0-1

[Event "HUN-chT Youth-Children 2018"]
[Site "Zalakaros"]
[Date "2018.07.28"]
[Round "6"]
[White "Gombocz, Zsofia"]
[Black "Pasti, Anna"]
[Result "1-0"]
[ECO "B40"]
[WhiteElo "1996"]
[BlackElo "1821"]
[Annotator "NA"]
[PlyCount "43"]
[EventDate "2018.07.26"]
[EventType "team-tourn"]
[EventCountry "HUN"]
[SourceTitle "playchess.com"]
[Source "ChessBase"]
[SourceQuality "1"]
[TimeControl "5400+30"]

1. e4 {[%emt 0:00:00]} c5 {[%emt 0:00:05]} 2. Nf3 {[%emt 0:00:00]} e6 {[%emt 0:00:05]} 3. c4 {[%emt 0:00:00]} Nc6 {[%emt 0:00:23]} 4. Nc3 {[%emt 0:00:55]} a6 {[%emt 0:00:35]} 5. Be2 {[%emt 0:01:20]} Qc7 {[%emt 0:00:25]} 6. O-O {[%emt 0:01:02]} Nf6 {[%emt 0:01:45]} 7. d4 {[%emt 0:01:12]} cxd4 {[%emt 0:00:52]} 8. Nxd4 {[%emt 0:00:11]} Bd6 {[%emt 0:02:55]} 9. h3 {[%emt 0:09:57]} Be5 {[%emt 0:08:37]} 10. Be3 {[%emt 0:05:13]} O-O {[%emt 0:04:03]} 11. Rc1 {[%emt 0:04:05]} Qd6 {[%emt 0:04:46]} 12. c5 {[%emt 0:09:00]} Qe7 {[%emt 0:05:47]} 13. f4 {[%emt 0:04:54]} Bxd4 {[%emt 0:05:04]} 14. Bxd4 {[%emt 0:00:14]} Nxd4 {[%emt 0:04:33]} 15. Qxd4 {[%emt 0:00:10]} Rd8 {[%emt 0:01:56]} 16. Rfd1 {[%emt 0:06:53]} Ne8 {[%emt 0:02:08]} 17. e5 {[%emt 0:02:58]} f6 {[%emt 0:01:25]} 18. Ne4 {[%emt 0:06:47]} Rb8 {[%emt 0:02:41]} 19. Bf3 {[%emt 0:06:53]} Kh8 {[%emt 0:05:35]} 20. Nd6 {[%emt 0:03:05]} Nxd6 {[%emt 0:01:40]} 21. cxd6 {[%emt 0:00:14]} Qf8 {[%emt 0:00:51]} 22. Qa7 {[%emt 0:00:08]} 1-0